Cogmind - Beta 14 @@@ ROGUE MODE // 2025.03.24 @ 02:43:56 Player: ochotona_princeps Result: Destroyed by YI-UF0 with YI-UF0's Doublenader Performance ------------- Evolutions (1) 500 Regions Visited (3) 600 Robots Destroyed (56) 280 Value Destroyed (1373) 1373 Prototype IDs (6) 120 Alien Tech Used (0) 0 Bonus (172) 172 TOTAL SCORE: 3045 Bonus ------- High Alert Combat Kills 172 Cogmind --------- Core Integrity 0/400 Matter 294/300 Energy 100/100 System Corruption 0% Temperature Cool (1) Movement Flying (40) Location -9/Mines Parts ------- > --- POWER (1) -------- (None) > --- PROPULSION (2) --- Improved Flight Unit > --- UTILITY (4) ------ Visual Processing Unit Targeting Computer > --- WEAPON (2) ------- Mace > --- INVENTORY (5) ---- Small Storage Unit Reflective Plating Mini Grenade Launcher Peak State ------------ > --- POWER ------------ Cooled Ion Engine > --- PROPULSION ------- Improved Flight Unit Improved Flight Unit > --- UTILITY ---------- Visual Processing Unit Targeting Computer Hacking Suite > --- WEAPON ----------- Mini Grenade Launcher Mace > --- INVENTORY -------- Improved Flight Unit Improved Flight Unit Reflective Plating High-powered Shotgun [Rating: 20] Favorites ----------- Power Light Ion Engine Engine Light Ion Engine Propulsion Flight Unit Leg Aluminum Leg Wheel Compact Wheel Flight Unit Flight Unit Utility Targeting Computer Device Shield Generator Storage Small Storage Unit Processor Targeting Computer Hackware Hacking Suite Protection Backup Plating I Weapon Mace Energy Gun Medium Laser Ballistic Gun High-powered Shotgun Launcher Grenade Launcher Impact Weapon Mace Build | -11 -10 -9 -9 ------- Run | Yrd Mat Mat Min Slots Evolved 2 | . . 2 . Power . | . . . . Propulsion . | . . . . Utility 2 | . . 2 . Weapon . | . . . . Parts Attached 65 | 8 11 44 2 Power 7 | 1 1 5 . Engine 7 | 1 1 5 . Core . | . . . . Reactor . | . . . . Propulsion 15 | 4 5 4 2 Treads . | . . . . Leg 2 | 2 . . . Wheel 2 | 2 . . . Hover . | . . . . Flight 11 | . 5 4 2 Utility 12 | 1 . 11 . Device 1 | . . 1 . Storage 1 | 1 . . . Processor 2 | . . 2 . Hackware 1 | . . 1 . Protection 7 | . . 7 . Artifact . | . . . . Weapon 31 | 2 5 24 . Energy Gun 8 | . 3 5 . Energy Cannon . | . . . . Ballistic Gun 7 | 2 . 5 . Ballistic Cannon . | . . . . Launcher 9 | . 1 8 . Special Weapon . | . . . . Impact Weapon 7 | . 1 6 . Slashing Weapon . | . . . . Piercing Weapon . | . . . . Special Melee Weapon . | . . . . Unidentified Prototypes 3 | . . 3 . Parts Lost 15 | . 4 6 5 Power 4 | . 1 2 1 Propulsion 8 | . 2 3 3 Utility 1 | . . 1 . Weapon 2 | . 1 . 1 Highest Loss Streak 5 | . 3 2 5 To Critical Strikes . | . . . . Average Slot Usage (%) 61 | . 66 57 74 Engine 7 | . 11 4 9 Wheel 1 | . 4 . . Flight 20 | . 23 18 21 Processor 8 | . . 10 22 Protection 3 | . . 6 . Energy Gun 2 | . 6 1 . Ballistic Gun 4 | . 5 2 9 Launcher 1 | . 1 1 . Impact Weapon 9 | . 10 8 11 Peak Build Rating 20 | 6 6 20 18 Average Rating 9 | 3 5 10 17 On Entrance 7 | . 6 6 18 Naked Turns . | . . . . Heaviest Build 11 | 11 11 10 10 Greatest Support 26 | 26 26 10 10 Greatest Overweight (x) 1 | . 1 . . Average Overweight (x) . | . . . . Largest Inventory Capacity 8 | 8 8 5 5 Average Capacity 5 | 5 5 5 5 Most Carried 5 | 2 5 5 5 Average Carried 3 | . 2 4 4 Final Capacity 8 | 8 5 5 5 Final Carried 5 | 1 4 5 3 Class Distribution -------------------- 100% | Mutant Dominant Class ---------------- Mutant | -10/Materials Mutant | -9/Materials Mutant | -9/Mines Resources | -11 -10 -9 -9 ----------- Run | Yrd Mat Mat Min Matter Collected 1077 | 241 197 593 46 Remotely . | . . . . Salvage Created 1562 | . 456 1100 6 Parts 79 | . 16 63 . Haulers Intercepted 5 | . 1 4 . Recyclers Shooed . | . . . . Parts Field Recycled . | . . . . Retrieved Matter . | . . . . Parts Self-Destructed . | . . . . Prevented . | . . . . Kills | -11 -10 -9 -9 ------- Run | Yrd Mat Mat Min Combat Hostiles Destroyed 38 | . 10 27 1 Melee 5 | . 3 2 . Guns 9 | . 5 3 1 AOE 14 | . . 14 . Classes Destroyed 11 | . 7 3 1 Worker 3 | . 2 1 . Builder 2 | . . 2 . Tunneler 1 | . 1 . . Hauler 5 | . 1 4 . Operator 2 | . 1 1 . Watcher 6 | . 1 5 . Swarmer 9 | . 3 6 . Grunt 16 | . 7 9 . Brawler 2 | . . 2 . Sentry 10 | . . 10 . Assembled 1 | . . . 1 Best Kill Streak 6 | . 5 6 1 Combat Bots Only 5 | . 5 5 1 Max Kills in Single Turn 3 | . 1 3 1 Gunslinging . | . . . . Exploded 2 | . . 2 . Melee 1 | . 1 1 . Uniques/NPCs Destroyed . | . . . . Combat | -11 -10 -9 -9 -------- Run | Yrd Mat Mat Min Hostile Shots Fired 145 | . 44 70 31 Missed 49 | . 11 28 10 Damage Taken 1544 | . 350 565 629 Core 507 | . 97 149 261 Absorbed by Shields 16 | . . 16 . Ignored by Resistances 6 | . . 6 . Core Remaining (%) 80 | 100 61 . . Volleys Fired 55 | . 18 29 8 Largest 2 | . 2 2 1 Hottest 65 | . 50 65 25 Shots Fired 80 | . 35 37 8 Gun 67 | . 35 24 8 Cannon . | . . . . Launcher 13 | . . 13 . Special . | . . . . Kinetic 59 | . 34 17 8 Thermal 8 | . 1 7 . Explosive 13 | . . 13 . Electromagnetic . | . . . . Robot Hit Streak 7 | . 7 6 2 Robot Miss Streak 4 | . 4 4 4 Penetration Max . | . . . . Secondary Targets . | . . . . Shots Hit Robots 111 | . 38 66 7 Core Hits 48 | . 11 35 2 Critical Kills . | . . . . Critical Parts Destroyed 13 | . 6 7 . Critical Strikes 15 | . 7 8 . Burn 1 | . 1 . . Smash 14 | . 6 8 . Melee Attacks 90 | . 28 56 6 Impact 90 | . 28 56 6 Slashing . | . . . . Piercing . | . . . . Sneak Attacks 12 | . 5 7 . Combat Hostiles . | . . . . Follow-up Attacks . | . . . . Damage Inflicted 3945 | . 997 2827 121 Guns 615 | . 227 321 67 Cannons . | . . . . Explosions 1041 | . . 1041 . Melee 2289 | . 770 1465 54 Ramming . | . . . . Kinetic 522 | . 215 240 67 Thermal 93 | . 12 81 . Explosive 1041 | . . 1041 . Electromagnetic . | . . . . Impact 2289 | . 770 1465 54 Slashing . | . . . . Piercing . | . . . . Highest Corruption . | . . . . Average Corruption . | . . . . Corruption Purged . | . . . . Corruption Blocked . | . . . . Overload Shots . | . . . . Overflow Damage 1030 | . 428 602 . Projectiles . | . . . . Explosions 100 | . . 100 . Melee 930 | . 428 502 . Knockbacks 8 | . 4 4 . Impact 8 | . 4 4 . Kinetic . | . . . . Secondary . | . . . . Self-Inflicted Damage 15 | . . 15 . Shots 1 | . . 1 . Rammed . | . . . . Targets Rammed . | . . . . Kicked . | . . . . Crushed . | . . . . Highest Temperature 41 | . 22 41 . Average Temperature 14 | . 9 18 . Received Heat Transfer 343 | . 150 193 . Siege Activations . | . . . . Robots Corrupted 17 | . 7 10 . Combat Hostiles 10 | . 2 8 . Parts Fried 21 | . 9 12 . Impact Corruptions 36 | . 14 22 . Robots Melted . | . . . . Combat Hostiles . | . . . . Parts Melted . | . . . . Heat Transferred 297 | . 111 186 . Parts Sabotaged . | . . . . Parts Stolen . | . . . . Parts Stripped . | . . . . Power Chain Reactions . | . . . . Alert | -11 -10 -9 -9 ------- Run | Yrd Mat Mat Min Peak Influence 802 | . 326 802 166 Initial 166 | . . 65 166 Average 333 | . 170 455 162 Maximum Alert Level 3 | . 1 3 . Low Security (%) 39 | 100 66 13 100 Level 1 27 | . 33 30 . Level 2 22 | . . 38 . Level 3 10 | . . 16 . Level 4 . | . . . . Level 5 . | . . . . High Security . | . . . . Max Security . | . . . . Squads Dispatched 6 | . 1 5 . Investigation 2 | . 1 1 . Extermination . | . . . . Reinforcement 2 | . . 2 . Assault 2 | . . 2 . Garrison . | . . . . Intercept . | . . . . Searches Triggered . | . . . . Construction Impeded . | . . . . Haulers Reinforced . | . . . . Active Scanning Responses . | . . . . Cargo Convoy Interrupts . | . . . . Stealth | -11 -10 -9 -9 --------- Run | Yrd Mat Mat Min Distress Signals 5 | . 1 4 . Communications Jammed . | . . . . Distress Signals . | . . . . Times Spotted 66 | . 20 44 2 Peak Tracking Total 7 | . 5 7 1 Tactical Retreats 6 | . 1 5 . Traps | -11 -10 -9 -9 ------- Run | Yrd Mat Mat Min Traps Triggered 1 | . 1 . . Indirectly . | . . . . Trap Hack Attempts . | . . . . Triggered . | . . . . Disarmed . | . . . . Reprogrammed . | . . . . Reused . | . . . . Traps Extracted . | . . . . Installed . | . . . . Triggered . | . . . . Machines | -11 -10 -9 -9 ---------- Run | Yrd Mat Mat Min Machines Disabled 2 | . . 2 . Max in Single Turn 2 | . . 2 . Machines Repaired . | . . . . Machines Dismantled . | . . . . Machines Sabotaged . | . . . . Overloaded Fab Kills . | . . . . Hacking | -11 -10 -9 -9 --------- Run | Yrd Mat Mat Min Machines Accessed 14 | . 6 8 . Terminals 13 | . 6 7 . Fabricators . | . . . . Repair Stations 1 | . . 1 . Recycling Units . | . . . . Scanalyzers . | . . . . Garrison Access . | . . . . Total Hacks 49 | . 24 25 . Successful 31 | . 14 17 . Failed 18 | . 10 8 . Catastrophic 2 | . 1 1 . Database Lockouts . | . . . . Manual 32 | . 14 18 . Terminals 45 | . 24 21 . Fabricators . | . . . . Repair Stations 4 | . . 4 . Recycling Units . | . . . . Scanalyzers . | . . . . Garrison Access . | . . . . Terminal Hacks 15 | . 6 9 . Prototype ID Bank 2 | . 1 1 . Terminal Index 2 | . 1 1 . Unreport Threat 3 | . . 3 . Dispatch Records 1 | . 1 . . Patrol Status 1 | . 1 . . Recall Reinforcements 1 | . . 1 . Hauler Manifests 2 | . . 2 . Registered Components 1 | . 1 . . Zone Layout 2 | . 1 1 . Fabricator Hacks . | . . . . Repair Station Hacks 1 | . . 1 . Refit 1 | . . 1 . Recycling Unit Hacks . | . . . . Scanalyzer . | . . . . Garrison Access Hacks . | . . . . Unauthorized Hacks 15 | . 8 7 . Terminals 15 | . 8 7 . Track 6 | . 4 2 . Assimilate 5 | . 3 2 . Botnet 2 | . . 2 . Operators 2 | . 1 1 . Fabricators . | . . . . Repair Stations . | . . . . Recycling Units . | . . . . Scanalyzers . | . . . . Garrison Access . | . . . . Data Cores Recovered . | . . . . Used . | . . . . Hacking Detections 10 | . 4 6 . Full Trace Events 3 | . 1 2 . Feedback Events . | . . . . Feedback Blocked . | . . . . Robot Schematics Acquired . | . . . . Robots Built . | . . . . Authchips . | . . . . Time . | . . . . Total Robot Build Rating . | . . . . Part Schematics Acquired . | . . . . Parts Built . | . . . . Authchips . | . . . . Time . | . . . . Total Part Build Rating . | . . . . Parts Repaired . | . . . . Time . | . . . . Parts Recycled . | . . . . Recycled Matter . | . . . . Retrieved Matter . | . . . . Retrieved Components . | . . . . Parts Scanalyzed . | . . . . Part Schematics Acquired . | . . . . Parts Damaged . | . . . . Bothacking | -11 -10 -9 -9 ------------ Run | Yrd Mat Mat Min Used RIF Installer . | . . . . Robots Hacked . | . . . . Non-combat . | . . . . Combat . | . . . . Robot Hacks Applied . | . . . . Relay Couplers Released . | . . . . Fabnet Peak Effective % . | . . . . Robots Rewired . | . . . . Allies Hacked . | . . . . Hacks Repelled . | . . . . Allies | -11 -10 -9 -9 -------- Run | Yrd Mat Mat Min Total Allies 4 | . 2 2 . Largest Group 2 | . 2 2 1 Highest-Rated Group 20 | . 20 20 10 Highest-Rated Ally 10 | . 10 10 10 Total Orders 4 | . 2 2 . STAY 2 | . 1 1 . FOLLOW 2 | . 1 1 . Ally Attacks . | . . . . Total Damage . | . . . . Kills . | . . . . Allies Corrupted . | . . . . Allies Melted . | . . . . Intel | -11 -10 -9 -9 ------- Run | Yrd Mat Mat Min Robot Analysis Total . | . . . . Derelict Logs Recovered 1 | . . . 1 Drone Launches . | . . . . Drone Recoveries . | . . . . Exploration | -11 -10 -9 -9 ------------- Run | Yrd Mat Mat Min Turns Passed 2070 | 65 587 1227 191 Spaces Moved 3270 | 56 806 2016 392 Core 6 | 6 . . . Treads . | . . . . Legs 9 | 9 . . . Wheels 80 | 41 39 . . Hover . | . . . . Flight 3175 | . 767 2016 392 Fastest Speed 37 | 50 37 37 37 Average Speed 39 | 90 39 37 37 Slowest Speed 120 | 120 120 40 40 Overloaded Moves . | . . . . Propulsion Burnouts . | . . . . Robots Hopped 12 | . . 7 5 Cave-ins Triggered . | . . . . Exploration Rate (%) 57 | 4 77 93 57 Regions Visited 3 Branch Regions 1 Pre-discovered Areas . | . . . . Known Exits Taken . | . . . . Unknown Exits Taken 3 | 1 1 1 . Scrap Searched . | . . . . Spaces Dug 10 | . 4 6 . Terrain Destroyed 136 | . 4 132 . Melee 10 | . 4 6 . Projectile . | . . . . AOE 126 | . . 126 . Terrain Rammed . | . . . . Walls Destroyed . | . . . . Machines Disabled . | . . . . Actions | -11 -10 -9 -9 --------- Run | Yrd Mat Mat Min Total 3814 | 67 992 2341 414 Wait 279 | . 117 151 11 Move 3243 | 55 805 2001 382 Hop 12 | . . 7 5 Pick Up 24 | 2 7 15 . Fast Attach 30 | 7 4 19 . Attach 21 | 1 5 13 2 Detach 12 | . 1 11 . Swap 14 | . 2 12 . Drop 34 | 2 5 27 . Fire 55 | . 18 29 8 Melee 90 | . 28 56 6 Ram . | . . . . Kick . | . . . . Crush . | . . . . Escape Stasis . | . . . . Rewire . | . . . . Trap . | . . . . Miscellaneous . | . . . . Route ------- -11/Scrapyard -10/Materials (discovered 3 exits: *Mat x2 / [*Min]) -9/Materials (discovered 3 exits: [*Mat x2] / [*Min]) -9/Mines (discovered 1 exit: [*Mat]) History --------- Turn | Location | Event 3 | -11/Scrapyard | Discovered new exit (range 15) 66 | -11/Scrapyard | Entered Materials 190 | -10/Materials | Discovered new exit (range 16) 247 | -10/Materials | Discovered new exit (range 14) 293 | -10/Materials | Discovered new exit (range 13) 310 | -10/Materials | Build established: Mutant 311 | -10/Materials | Lost 3 parts (1p1n1w) 653 | -10/Materials | Entered another Materials area 653 | -9/Materials | Accompanied by 2 allies 653 | -9/Materials | Evolved 2 slots: Utility x2 978 | -9/Materials | Discovered new exit (range 9) 1075 | -9/Materials | Discovered new exit (range 4) 1218 | -9/Materials | Discovered new exit (range 10) 1853 | -9/Materials | First assault squad dispatched 1880 | -9/Materials | Entered Mines 1880 | -9/Mines | Accompanied by 1 ally 1884 | -9/Mines | Assembled infested the area 1898 | -9/Mines | Learned Materials interactive machine intel 2054 | -9/Mines | Core integrity fell below 50% 2065 | -9/Mines | Discovered new exit (range 13) 2066 | -9/Mines | Core integrity fell below 20% 2071 | -9/Mines | Destroyed by YI-UF0 with YI-UF0's Doublenader Last Messages --------------- 02060_ The unstable cave ceiling collapses. 02062_ K-01 Serf collects debris. 02063_ The unstable cave ceiling collapses. 02065_ EXIT=FOUND 02065_ K-01 Serf collects debris. 02067_ YI-UF0 mumbles something. 02068_ The unstable cave ceiling collapses. Open spaces previously occupied by now-destroyed walls and earth have a slight glow to them. Consecutive moves through these unstable areas may cause a cave-in, but only if doing so for extended periods. Tunneling a short distance between rooms is safe unless the area was destabilized by an explosion. 02069_ Imp. Flight Unit destroyed. 02069_ K-01 Serf destroyed. 02070_ The unstable cave ceiling collapses. 02070_ U-05 Engineer lays Concrete. 02070_ K-01 Serf collects debris. 02071_ U-05 Engineer lays Concrete. Map ----- +----------------------------------------------------+ | ?????????????????????????????????? | | ?????????????????????????????????? | | ?????????????????????????????????? | | ?????????????????????????????????? | | ?????????????????????????????????? | | ?????????????????????????????????? | | ?????????????????????????????????? | | ?????????????????????????????????? | | ?????????????????????????????????? | | ?????????????????????????????????? | | ?????????????????????????????????? | | ?????????#???????????????????????? | | ????????? ???????????????????????? | | ????????? ???????????????????????? | | ????????# #??????????????????????? | | #####???# #??????????????????????? | | #???# #??????????????????????? | | ### #???# #??????????????????????? | | ??# #???# #?????????????????####?? | | ??# #???# #????????????????? ##? | | ??# #???# #??#??#?????????? #? | | ??# #?#?# #### ?# ??????#?# #? | | ??# #? # ## ?# ?????? # #? | | ??# ## ## ????### # # ##? | | ??# # ##### *! #? | | ??# ## # # @%< #?? | | ??# ## # ! #?? | | ??# # # #? | | ??# #?# ## =%! #??? | | ??# #??? # < #??? | | ??# #??? ## ### ##??? | | ??# #??? ## # #? #???? | | ??# #???# # ##? #??? | | ??# #???? # g #? #?? | | ### #??# u #k #? ?? | | # #??# # #?# ##? | | # ###??# # #?? #?? | | # ##???### # #??%= ?? | | ##????# # # ##?? #? | | ####### #??? #? | | #???? ##? | | ###### %== !% #?? | | ####### # !! = #?? | | # # # #?? | | # ################### ##?? | | ####??????????????????#########??? | | ?????????????????????????????????? | | ?????????????????????????????????? | | ?????????????????????????????????? | | | +----------------------------------------------------+ Best States ------------- Heat Dissipation 28 Energy Generation 14 Energy Capacity 280 Matter Stores 300 Matter Capacity 300 Sight Range 18 Terrain Scan Density 10 Armor Coverage 230 Resistance: TH 10 Evasion (%) 62 Targeting Accuracy 5 Offensive Hacking 10 Item Schematics ----------------- None Robot Schematics ------------------ None Fabricated ------------ Nothing Alien Tech Used ----------------- None Achievements -------------- None Challenges ------------ None Game ------ Seed MinesnifferScrapShifter Manual? 0 Play Time 00:43:52 Cumulative 190.8 hours Start 2025.03.24 @ 01:54:59 End 2025.03.24 @ 02:43:56 Sessions 1 Manual Loads 0 Difficulty Rogue Special Mode None Game No. 185 Rogue 124 Adventurer 61 Explorer 0 Win Type - Total 9 Types 7/0/2/0/0/0/0/0/0 Lore% 30 Gallery% 63 Achievement% 60 Wizard Run 0 Options --------- Layout 1 ASCII 0 Keyboard 0 Movement Numpad Keybinds 0 Fullscreen 2 Font 32/SmallcapsGlow Map View 50x35 Zoom Use 0% Tactical HUD 1 Map Filters NONE Filters NONE Steam 1 RUN: e38e59dd-03fd-48fa-b47d-064f80031cce